Workbook

Sheet Sheet1
A1: 序号 | B1: 姓名 | C1: 岗位代码 | D1: 准考证号 | E1: 岗位排名 | F1: 最低入闱成绩
A2: 1 | B2: 胡苏云 | C2: 360105203001 | D2: 154012907510 | E2: 1 | F2: =VLOOKUP(C2,Sheet2!A:B,2,FALSE) -> 185.5
A3: 2 | B3: 聂敏 | C3: 360105203001 | D3: 154012908518 | E3: 2 | F3: =VLOOKUP(C3,Sheet2!A:B,2,FALSE) -> 185.5
A4: 3 | B4: 王帆 | C4: 360105203001 | D4: 154012908502 | E4: 3 | F4: =VLOOKUP(C4,Sheet2!A:B,2,FALSE) -> 185.5
A5: 4 | B5: 陈振斌 | C5: 360105205001 | D5: 154211002411 | E5: 1 | F5: =VLOOKUP(C5,Sheet2!A:B,2,FALSE) -> 144
A6: 5 | B6: 龚远聪 | C6: 360105205001 | D6: 154012804102 | E6: 2 | F6: =VLOOKUP(C6,Sheet2!A:B,2,FALSE) -> 144
A7: 6 | B7: 王殿斑 | C7: 360105205001 | D7: 154012804416 | E7: 3 | F7: =VLOOKUP(C7,Sheet2!A:B,2,FALSE) -> 144
A8: 7 | B8: 章倩倩 | C8: 360105206001 | D8: 154012701704 | E8: 1 | F8: =VLOOKUP(C8,Sheet2!A:B,2,FALSE) -> 188.5
A9: 8 | B9: 欧阳文茜 | C9: 360105206001 | D9: 154012702726 | E9: 2 | F9: =VLOOKUP(C9,Sheet2!A:B,2,FALSE) -> 188.5
A10: 9 | B10: 芦赛 | C10: 360105206001 | D10: 154012702307 | E10: 3 | F10: =VLOOKUP(C10,Sheet2!A:B,2,FALSE) -> 188.5
A11: 10 | B11: 朱江燕 | C11: 360120201008 | D11: 154210902623 | E11: 1 | F11: =VLOOKUP(C11,Sheet2!A:B,2,FALSE) -> 137
A12: 11 | B12: 范素琴 | C12: 360120201008 | D12: 154012700916 | E12: 2 | F12: =VLOOKUP(C12,Sheet2!A:B,2,FALSE) -> 137
A13: 12 | B13: 廖秋玲 | C13: 360120201008 | D13: 154012700624 | E13: 3 | F13: =VLOOKUP(C13,Sheet2!A:B,2,FALSE) -> 137
A14: 13 | B14: 李雪梅 | C14: 360120201008 | D14: 154012701322 | E14: 4 | F14: =VLOOKUP(C14,Sheet2!A:B,2,FALSE) -> 137
A15: 14 | B15: 杨雅思 | C15: 360120201008 | D15: 154210901621 | E15: 5 | F15: =VLOOKUP(C15,Sheet2!A:B,2,FALSE) -> 137
A16: 15 | B16: 刘婷 | C16: 360120201008 | D16: 154210900518 | E16: 6 | F16: =VLOOKUP(C16,Sheet2!A:B,2,FALSE) -> 137
A17: 16 | B17: 杨晴 | C17: 360120201008 | D17: 154210902815 | E17: 7 | F17: =VLOOKUP(C17,Sheet2!A:B,2,FALSE) -> 137
A18: 17 | B18: 杨晴 | C18: 360120201008 | D18: 154210903229 | E18: 8 | F18: =VLOOKUP(C18,Sheet2!A:B,2,FALSE) -> 137
A19: 18 | B19: 管春春 | C19: 360120201008 | D19: 154210902206 | E19: 9 | F19: =VLOOKUP(C19,Sheet2!A:B,2,FALSE) -> 137
A20: 19 | B20: 钟慧玲 | C20: 360120201008 | D20: 154210901322 | E20: 10 | F20: =VLOOKUP(C20,Sheet2!A:B,2,FALSE) -> 137
A21: 20 | B21: 郭园红 | C21: 360120201008 | D21: 154210902626 | E21: 11 | F21: =VLOOKUP(C21,Sheet2!A:B,2,FALSE) -> 137
A22: 21 | B22: 钟伟庭 | C22: 360120201008 | D22: 154210903114 | E22: 12 | F22: =VLOOKUP(C22,Sheet2!A:B,2,FALSE) -> 137
A23: 22 | B23: 肖凤 | C23: 360120201008 | D23: 154210901710 | E23: 13 | F23: =VLOOKUP(C23,Sheet2!A:B,2,FALSE) -> 137
A24: 23 | B24: 杨凌芳 | C24: 360120201008 | D24: 154210902211 | E24: 14 | F24: =VLOOKUP(C24,Sheet2!A:B,2,FALSE) -> 137
A25: 24 | B25: 刘淦丽 | C25: 360120201008 | D25: 154210901920 | E25: 15 | F25: =VLOOKUP(C25,Sheet2!A:B,2,FALSE) -> 137
A26: 25 | B26: 朱雅茜 | C26: 360120201008 | D26: 154210903102 | E26: 16 | F26: =VLOOKUP(C26,Sheet2!A:B,2,FALSE) -> 137
A27: 26 | B27: 钟孟池 | C27: 360120201008 | D27: 154210900110 | E27: 17 | F27: =VLOOKUP(C27,Sheet2!A:B,2,FALSE) -> 137
A28: 27 | B28: 雷慧 | C28: 360120201008 | D28: 154210902117 | E28: 18 | F28: =VLOOKUP(C28,Sheet2!A:B,2,FALSE) -> 137
A29: 28 | B29: 王雅茹 | C29: 360120201008 | D29: 154012700220 | E29: 19 | F29: =VLOOKUP(C29,Sheet2!A:B,2,FALSE) -> 137
A30: 29 | B30: 杨蕊萌 | C30: 360120201008 | D30: 154012701512 | E30: 20 | F30: =VLOOKUP(C30,Sheet2!A:B,2,FALSE) -> 137
A31: 30 | B31: 刘欣 | C31: 360120202008 | D31: 154210201511 | E31: 1 | F31: =VLOOKUP(C31,Sheet2!A:B,2,FALSE) -> 127.5
A32: 31 | B32: 王敏 | C32: 360120202008 | D32: 154210201512 | E32: 2 | F32: =VLOOKUP(C32,Sheet2!A:B,2,FALSE) -> 127.5
A33: 32 | B33: 钟慧敏 | C33: 360120202008 | D33: 154210201918 | E33: 3 | F33: =VLOOKUP(C33,Sheet2!A:B,2,FALSE) -> 127.5
A34: 33 | B34: 丁贝娅 | C34: 360120202008 | D34: 154210200606 | E34: 4 | F34: =VLOOKUP(C34,Sheet2!A:B,2,FALSE) -> 127.5
A35: 34 | B35: 赖丽 | C35: 360120202008 | D35: 154210201104 | E35: 5 | F35: =VLOOKUP(C35,Sheet2!A:B,2,FALSE) -> 127.5
A36: 35 | B36: 唐盈盈 | C36: 360120202008 | D36: 154242703222 | E36: 6 | F36: =VLOOKUP(C36,Sheet2!A:B,2,FALSE) -> 127.5
A37: 36 | B37: 钟海兰 | C37: 360120202008 | D37: 154210200230 | E37: 7 | F37: =VLOOKUP(C37,Sheet2!A:B,2,FALSE) -> 127.5
A38: 37 | B38: 钟楚林 | C38: 360120202008 | D38: 154210201217 | E38: 8 | F38: =VLOOKUP(C38,Sheet2!A:B,2,FALSE) -> 127.5
A39: 38 | B39: 钟荣 | C39: 360120202008 | D39: 154221405024 | E39: 10 | F39: =VLOOKUP(C39,Sheet2!A:B,2,FALSE) -> 127.5
A40: 39 | B40: 李文清 | C40: 360120202008 | D40: 154242703127 | E40: 9 | F40: =VLOOKUP(C40,Sheet2!A:B,2,FALSE) -> 127.5
A41: 40 | B41: 朱亚晴 | C41: 360120202008 | D41: 154210201311 | E41: 11 | F41: =VLOOKUP(C41,Sheet2!A:B,2,FALSE) -> 127.5
A42: 41 | B42: 葛春红 | C42: 360120202008 | D42: 154210201604 | E42: 12 | F42: =VLOOKUP(C42,Sheet2!A:B,2,FALSE) -> 127.5
A43: 42 | B43: 李婷 | C43: 360120202008 | D43: 154210200930 | E43: 13 | F43: =VLOOKUP(C43,Sheet2!A:B,2,FALSE) -> 127.5
A44: 43 | B44: 张凯 | C44: 360120202008 | D44: 154210201530 | E44: 14 | F44: =VLOOKUP(C44,Sheet2!A:B,2,FALSE) -> 127.5
A45: 44 | B45: 肖莉 | C45: 360120202008 | D45: 154012906303 | E45: 15 | F45: =VLOOKUP(C45,Sheet2!A:B,2,FALSE) -> 127.5
A46: 45 | B46: 胡燕 | C46: 360120202008 | D46: 154210201121 | E46: 16 | F46: =VLOOKUP(C46,Sheet2!A:B,2,FALSE) -> 127.5
A47: 46 | B47: 彭春玉 | C47: 360120202008 | D47: 154210201808 | E47: 17 | F47: =VLOOKUP(C47,Sheet2!A:B,2,FALSE) -> 127.5
A48: 47 | B48: 卢艳 | C48: 360120202008 | D48: 154020500801 | E48: 18 | F48: =VLOOKUP(C48,Sheet2!A:B,2,FALSE) -> 127.5
A49: 48 | B49: 张秀芹 | C49: 360120202008 | D49: 154210200830 | E49: 19 | F49: =VLOOKUP(C49,Sheet2!A:B,2,FALSE) -> 127.5
A50: 49 | B50: 吴月美 | C50: 360120202008 | D50: 154210200314 | E50: 20 | F50: =VLOOKUP(C50,Sheet2!A:B,2,FALSE) -> 127.5
A51: 50 | B51: 林平香 | C51: 360120203008 | D51: 154012805907 | E51: 1 | F51: =VLOOKUP(C51,Sheet2!A:B,2,FALSE) -> 168.5
A52: 51 | B52: 罗双 | C52: 360120203008 | D52: 154210703111 | E52: 2 | F52: =VLOOKUP(C52,Sheet2!A:B,2,FALSE) -> 168.5
A53: 52 | B53: 曾佳敏 | C53: 360120203008 | D53: 154210701705 | E53: 3 | F53: =VLOOKUP(C53,Sheet2!A:B,2,FALSE) -> 168.5
A54: 53 | B54: 黄云 | C54: 360120203008 | D54: 154210701527 | E54: 4 | F54: =VLOOKUP(C54,Sheet2!A:B,2,FALSE) -> 168.5
A55: 54 | B55: 钟芳丽 | C55: 360120203008 | D55: 154012804629 | E55: 5 | F55: =VLOOKUP(C55,Sheet2!A:B,2,FALSE) -> 168.5
A56: 55 | B56: 方六女 | C56: 360120203008 | D56: 154210703204 | E56: 6 | F56: =VLOOKUP(C56,Sheet2!A:B,2,FALSE) -> 168.5
A57: 56 | B57: 邱晓雯 | C57: 360120203008 | D57: 154012805721 | E57: 7 | F57: =VLOOKUP(C57,Sheet2!A:B,2,FALSE) -> 168.5
A58: 57 | B58: 毛洋燕 | C58: 360120203008 | D58: 154210703909 | E58: 8 | F58: =VLOOKUP(C58,Sheet2!A:B,2,FALSE) -> 168.5
A59: 58 | B59: 廖绮欣 | C59: 360120203008 | D59: 154012908204 | E59: 9 | F59: =VLOOKUP(C59,Sheet2!A:B,2,FALSE) -> 168.5
A60: 59 | B60: 余宏佳 | C60: 360120203008 | D60: 154210701220 | E60: 10 | F60: =VLOOKUP(C60,Sheet2!A:B,2,FALSE) -> 168.5
A61: 60 | B61: 刘婧 | C61: 360120203008 | D61: 154210702326 | E61: 11 | F61: =VLOOKUP(C61,Sheet2!A:B,2,FALSE) -> 168.5
A62: 61 | B62: 刘丽芳 | C62: 360120203008 | D62: 154210703920 | E62: 12 | F62: =VLOOKUP(C62,Sheet2!A:B,2,FALSE) -> 168.5
A63: 62 | B63: 邹淑梅 | C63: 360120203008 | D63: 154012908416 | E63: 13 | F63: =VLOOKUP(C63,Sheet2!A:B,2,FALSE) -> 168.5
A64: 63 | B64: 谢玲 | C64: 360120203008 | D64: 154210700804 | E64: 14 | F64: =VLOOKUP(C64,Sheet2!A:B,2,FALSE) -> 168.5
A65: 64 | B65: 罗婷 | C65: 360120203008 | D65: 154012805809 | E65: 15 | F65: =VLOOKUP(C65,Sheet2!A:B,2,FALSE) -> 168.5
A66: 65 | B66: 熊黎之 | C66: 360120203008 | D66: 154210700507 | E66: 16 | F66: =VLOOKUP(C66,Sheet2!A:B,2,FALSE) -> 168.5
A67: 66 | B67: 杨华英 | C67: 360120203008 | D67: 154210702824 | E67: 17 | F67: =VLOOKUP(C67,Sheet2!A:B,2,FALSE) -> 168.5
A68: 67 | B68: 胡彩娇 | C68: 360120203008 | D68: 154210701125 | E68: 18 | F68: =VLOOKUP(C68,Sheet2!A:B,2,FALSE) -> 168.5
A69: 68 | B69: 杨婷 | C69: 360120203008 | D69: 154210700609 | E69: 19 | F69: =VLOOKUP(C69,Sheet2!A:B,2,FALSE) -> 168.5
A70: 69 | B70: 周兰娇 | C70: 360120203008 | D70: 154020501119 | E70: 20 | F70: =VLOOKUP(C70,Sheet2!A:B,2,FALSE) -> 168.5
A71: 70 | B71: 杨婷 | C71: 360120204005 | D71: 154012908818 | E71: 1 | F71: =VLOOKUP(C71,Sheet2!A:B,2,FALSE) -> 118
A72: 71 | B72: 朱媛媛 | C72: 360120204005 | D72: 154210202305 | E72: 2 | F72: =VLOOKUP(C72,Sheet2!A:B,2,FALSE) -> 118
A73: 72 | B73: 谢雪莉 | C73: 360120204005 | D73: 154030306303 | E73: 3 | F73: =VLOOKUP(C73,Sheet2!A:B,2,FALSE) -> 118
A74: 73 | B74: 杨丽贞 | C74: 360120204005 | D74: 154210202626 | E74: 4 | F74: =VLOOKUP(C74,Sheet2!A:B,2,FALSE) -> 118
A75: 74 | B75: 黄佳鸿 | C75: 360120204005 | D75: 154210202728 | E75: 5 | F75: =VLOOKUP(C75,Sheet2!A:B,2,FALSE) -> 118
A76: 75 | B76: 李思锐 | C76: 360120205005 | D76: 154211003115 | E76: 1 | F76: =VLOOKUP(C76,Sheet2!A:B,2,FALSE) -> 128
A77: 76 | B77: 肖良坤 | C77: 360120205005 | D77: 154211002901 | E77: 2 | F77: =VLOOKUP(C77,Sheet2!A:B,2,FALSE) -> 128
A78: 77 | B78: 胡鹏 | C78: 360120205005 | D78: 154211003312 | E78: 3 | F78: =VLOOKUP(C78,Sheet2!A:B,2,FALSE) -> 128
A79: 78 | B79: 毛俊俊 | C79: 360120205005 | D79: 154012804221 | E79: 4 | F79: =VLOOKUP(C79,Sheet2!A:B,2,FALSE) -> 128
A80: 79 | B80: 钟海宁 | C80: 360120205005 | D80: 154211002227 | E80: 5 | F80: =VLOOKUP(C80,Sheet2!A:B,2,FALSE) -> 128
A81: 80 | B81: 刘艳山 | C81: 360120205005 | D81: 154211002418 | E81: 6 | F81: =VLOOKUP(C81,Sheet2!A:B,2,FALSE) -> 128
A82: 81 | B82: 黄丽 | C82: 360120205005 | D82: 154211002124 | E82: 7 | F82: =VLOOKUP(C82,Sheet2!A:B,2,FALSE) -> 128
A83: 82 | B83: 赖雯瑶 | C83: 360120205005 | D83: 154211002305 | E83: 8 | F83: =VLOOKUP(C83,Sheet2!A:B,2,FALSE) -> 128
A84: 83 | B84: 肖剑 | C84: 360120205005 | D84: 154211003317 | E84: 9 | F84: =VLOOKUP(C84,Sheet2!A:B,2,FALSE) -> 128
A85: 84 | B85: 邱粮昌 | C85: 360120205005 | D85: 154012804201 | E85: 10 | F85: =VLOOKUP(C85,Sheet2!A:B,2,FALSE) -> 128
A86: 85 | B86: 钟跃俊 | C86: 360120205005 | D86: 154012405829 | E86: 11 | F86: =VLOOKUP(C86,Sheet2!A:B,2,FALSE) -> 128
A87: 86 | B87: 刘昌金 | C87: 360120205005 | D87: 154211002207 | E87: 12 | F87: =VLOOKUP(C87,Sheet2!A:B,2,FALSE) -> 128
A88: 87 | B88: 陈华香 | C88: 360120205005 | D88: 154211001919 | E88: 13 | F88: =VLOOKUP(C88,Sheet2!A:B,2,FALSE) -> 128
A89: 88 | B89: 邱美田 | C89: 360120205005 | D89: 154211002507 | E89: 14 | F89: =VLOOKUP(C89,Sheet2!A:B,2,FALSE) -> 128
A90: 89 | B90: 蔡伟平 | C90: 360120205005 | D90: 154211001502 | E90: 15 | F90: =VLOOKUP(C90,Sheet2!A:B,2,FALSE) -> 128
A91: 90 | B91: 钟梦婷 | C91: 360120205005 | D91: 154211002708 | E91: 16 | F91: =VLOOKUP(C91,Sheet2!A:B,2,FALSE) -> 128
A92: 91 | B92: 刘文强 | C92: 360120206002 | D92: 154210502326 | E92: 1 | F92: =VLOOKUP(C92,Sheet2!A:B,2,FALSE) -> 179.5
A93: 92 | B93: 梁琳英 | C93: 360120206002 | D93: 154210502220 | E93: 2 | F93: =VLOOKUP(C93,Sheet2!A:B,2,FALSE) -> 179.5
A94: 93 | B94: 刘林林 | C94: 360120206002 | D94: 154012702624 | E94: 3 | F94: =VLOOKUP(C94,Sheet2!A:B,2,FALSE) -> 179.5
A95: 94 | B95: 钟欢 | C95: 360120206002 | D95: 154210502517 | E95: 4 | F95: =VLOOKUP(C95,Sheet2!A:B,2,FALSE) -> 179.5
A96: 95 | B96: 谢路林 | C96: 360120206002 | D96: 154012702027 | E96: 5 | F96: =VLOOKUP(C96,Sheet2!A:B,2,FALSE) -> 179.5
A97: 96 | B97: 刘瑶 | C97: 360120206002 | D97: 154210501309 | E97: 6 | F97: =VLOOKUP(C97,Sheet2!A:B,2,FALSE) -> 179.5
A98: 97 | B98: 陈丽华 | C98: 360120207002 | D98: 154210402018 | E98: 1 | F98: =VLOOKUP(C98,Sheet2!A:B,2,FALSE) -> 161.5
A99: 98 | B99: 杨威 | C99: 360120207002 | D99: 154210401202 | E99: 2 | F99: =VLOOKUP(C99,Sheet2!A:B,2,FALSE) -> 161.5
A100: 99 | B100: 曾旋 | C100: 360120207002 | D100: 154210402230 | E100: 3 | F100: =VLOOKUP(C100,Sheet2!A:B,2,FALSE) -> 161.5
A101: 100 | B101: 陈莉芬 | C101: 360120207002 | D101: 154012702926 | E101: 4 | F101: =VLOOKUP(C101,Sheet2!A:B,2,FALSE) -> 161.5
A102: 101 | B102: 杨旗 | C102: 360120207002 | D102: 154210401616 | E102: 5 | F102: =VLOOKUP(C102,Sheet2!A:B,2,FALSE) -> 161.5
A103: 102 | B103: 宋小美 | C103: 360120207002 | D103: 154210401915 | E103: 6 | F103: =VLOOKUP(C103,Sheet2!A:B,2,FALSE) -> 161.5
A104: 103 | B104: 杨温予 | C104: 360120208002 | D104: 154210303601 | E104: 1 | F104: =VLOOKUP(C104,Sheet2!A:B,2,FALSE) -> 133
A105: 104 | B105: 蔡雅婷 | C105: 360120209002 | D105: 154210402819 | E105: 2 | F105: =VLOOKUP(C105,Sheet2!A:B,2,FALSE) -> 145
A106: 105 | B106: 邓瑶 | C106: 360120209002 | D106: 154040803506 | E106: 1 | F106: =VLOOKUP(C106,Sheet2!A:B,2,FALSE) -> 145
A107: 106 | B107: 张瑶 | C107: 360120209002 | D107: 154210403013 | E107: 3 | F107: =VLOOKUP(C107,Sheet2!A:B,2,FALSE) -> 145
A108: 107 | B108: 陈炜雄 | C108: 360120210002 | D108: 154210304227 | E108: 1 | F108: =VLOOKUP(C108,Sheet2!A:B,2,FALSE) -> 98
A109: 108 | B109: 张燕 | C109: 360120210002 | D109: 154210304102 | E109: 2 | F109: =VLOOKUP(C109,Sheet2!A:B,2,FALSE) -> 98
A110: 109 | B110: 许俊伟 | C110: 360120211004 | D110: 154012803607 | E110: 1 | F110: =VLOOKUP(C110,Sheet2!A:B,2,FALSE) -> 122
A111: 110 | B111: 李雨馨 | C111: 360120211004 | D111: 154211000910 | E111: 2 | F111: =VLOOKUP(C111,Sheet2!A:B,2,FALSE) -> 122
A112: 111 | B112: 邹鹏 | C112: 360120211004 | D112: 154211001027 | E112: 3 | F112: =VLOOKUP(C112,Sheet2!A:B,2,FALSE) -> 122
A113: 112 | B113: 邓贤 | C113: 360120212002 | D113: 154231505401 | E113: 1 | F113: =VLOOKUP(C113,Sheet2!A:B,2,FALSE) -> 130.5
A114: 113 | B114: 徐孟诚 | C114: 360122101009 | D114: 154012102310 | E114: 1 | F114: =VLOOKUP(C114,Sheet2!A:B,2,FALSE) -> 188
A115: 114 | B115: 胡婷婷 | C115: 360122101009 | D115: 154012302708 | E115: 2 | F115: =VLOOKUP(C115,Sheet2!A:B,2,FALSE) -> 188
A116: 115 | B116: 方菲 | C116: 360122101009 | D116: 154012302330 | E116: 3 | F116: =VLOOKUP(C116,Sheet2!A:B,2,FALSE) -> 188
A117: 116 | B117: 夏远 | C117: 360122101009 | D117: 154012102720 | E117: 4 | F117: =VLOOKUP(C117,Sheet2!A:B,2,FALSE) -> 188
A118: 117 | B118: 李旭丽 | C118: 360122101009 | D118: 154012300214 | E118: 5 | F118: =VLOOKUP(C118,Sheet2!A:B,2,FALSE) -> 188
A119: 118 | B119: 吴玉晨 | C119: 360122101009 | D119: 154012101303 | E119: 6 | F119: =VLOOKUP(C119,Sheet2!A:B,2,FALSE) -> 188
A120: 119 | B120: 江仁琴 | C120: 360122101009 | D120: 154012300926 | E120: 7 | F120: =VLOOKUP(C120,Sheet2!A:B,2,FALSE) -> 188
A121: 120 | B121: 胡小芳 | C121: 360122101009 | D121: 154012300426 | E121: 9 | F121: =VLOOKUP(C121,Sheet2!A:B,2,FALSE) -> 188
A122: 121 | B122: 熊茜 | C122: 360122101009 | D122: 154012102430 | E122: 8 | F122: =VLOOKUP(C122,Sheet2!A:B,2,FALSE) -> 188
A123: 122 | B123: 陈雅珍 | C123: 360122101009 | D123: 154012101220 | E123: 10 | F123: =VLOOKUP(C123,Sheet2!A:B,2,FALSE) -> 188
A124: 123 | B124: 吴珍珍 | C124: 360122101009 | D124: 154242402113 | E124: 11 | F124: =VLOOKUP(C124,Sheet2!A:B,2,FALSE) -> 188
A125: 124 | B125: 张君琦 | C125: 360122101009 | D125: 154040700110 | E125: 12 | F125: =VLOOKUP(C125,Sheet2!A:B,2,FALSE) -> 188
A126: 125 | B126: 熊周媗 | C126: 360122101009 | D126: 154012301530 | E126: 13 | F126: =VLOOKUP(C126,Sheet2!A:B,2,FALSE) -> 188
A127: 126 | B127: 胡雨萱 | C127: 360122101009 | D127: 154012302710 | E127: 14 | F127: =VLOOKUP(C127,Sheet2!A:B,2,FALSE) -> 188
A128: 127 | B128: 闵思琴 | C128: 360122101009 | D128: 154012102510 | E128: 16 | F128: =VLOOKUP(C128,Sheet2!A:B,2,FALSE) -> 188
A129: 128 | B129: 郑小姣 | C129: 360122101009 | D129: 154012301522 | E129: 17 | F129: =VLOOKUP(C129,Sheet2!A:B,2,FALSE) -> 188
A130: 129 | B130: 邹宇淑 | C130: 360122101009 | D130: 154012101321 | E130: 15 | F130: =VLOOKUP(C130,Sheet2!A:B,2,FALSE) -> 188
A131: 130 | B131: 陈晴 | C131: 360122101009 | D131: 154012101827 | E131: 18 | F131: =VLOOKUP(C131,Sheet2!A:B,2,FALSE) -> 188
A132: 131 | B132: 赵惠惠 | C132: 360122101009 | D132: 154012302320 | E132: 19 | F132: =VLOOKUP(C132,Sheet2!A:B,2,FALSE) -> 188
A133: 132 | B133: 陈可欣 | C133: 360122101009 | D133: 154012302227 | E133: 22 | F133: =VLOOKUP(C133,Sheet2!A:B,2,FALSE) -> 188
A134: 133 | B134: 陈瑶 | C134: 360122101009 | D134: 154012102613 | E134: 20 | F134: =VLOOKUP(C134,Sheet2!A:B,2,FALSE) -> 188
A135: 134 | B135: 黄燕 | C135: 360122101009 | D135: 154012301313 | E135: 21 | F135: =VLOOKUP(C135,Sheet2!A:B,2,FALSE) -> 188
A136: 135 | B136: 蔡甜甜 | C136: 360122101009 | D136: 154012102420 | E136: 23 | F136: =VLOOKUP(C136,Sheet2!A:B,2,FALSE) -> 188
A137: 136 | B137: 万明慧 | C137: 360122102008 | D137: 154250103208 | E137: 1 | F137: =VLOOKUP(C137,Sheet2!A:B,2,FALSE) -> 184.5
A138: 137 | B138: 程秋霞 | C138: 360122102008 | D138: 154012203122 | E138: 2 | F138: =VLOOKUP(C138,Sheet2!A:B,2,FALSE) -> 184.5
A139: 138 | B139: 罗梦真 | C139: 360122102008 | D139: 154012203504 | E139: 3 | F139: =VLOOKUP(C139,Sheet2!A:B,2,FALSE) -> 184.5
A140: 139 | B140: 熊知 | C140: 360122102008 | D140: 154012203814 | E140: 4 | F140: =VLOOKUP(C140,Sheet2!A:B,2,FALSE) -> 184.5
A141: 140 | B141: 邹梦馨 | C141: 360122102008 | D141: 154012202201 | E141: 5 | F141: =VLOOKUP(C141,Sheet2!A:B,2,FALSE) -> 184.5
A142: 141 | B142: 邹可 | C142: 360122102008 | D142: 154012202525 | E142: 6 | F142: =VLOOKUP(C142,Sheet2!A:B,2,FALSE) -> 184.5
A143: 142 | B143: 贺思敏 | C143: 360122102008 | D143: 154232404229 | E143: 8 | F143: =VLOOKUP(C143,Sheet2!A:B,2,FALSE) -> 184.5
A144: 143 | B144: 熊诗瑜 | C144: 360122102008 | D144: 154012202110 | E144: 9 | F144: =VLOOKUP(C144,Sheet2!A:B,2,FALSE) -> 184.5
A145: 144 | B145: 黄亚云 | C145: 360122102008 | D145: 154250102210 | E145: 7 | F145: =VLOOKUP(C145,Sheet2!A:B,2,FALSE) -> 184.5
A146: 145 | B146: 邬莹莹 | C146: 360122102008 | D146: 154012303111 | E146: 10 | F146: =VLOOKUP(C146,Sheet2!A:B,2,FALSE) -> 184.5
A147: 146 | B147: 蔡思思 | C147: 360122102008 | D147: 154012200414 | E147: 11 | F147: =VLOOKUP(C147,Sheet2!A:B,2,FALSE) -> 184.5
A148: 147 | B148: 袁雨倩 | C148: 360122102008 | D148: 154250102926 | E148: 12 | F148: =VLOOKUP(C148,Sheet2!A:B,2,FALSE) -> 184.5
A149: 148 | B149: 魏淇 | C149: 360122102008 | D149: 154012201505 | E149: 13 | F149: =VLOOKUP(C149,Sheet2!A:B,2,FALSE) -> 184.5
A150: 149 | B150: 李甘甘 | C150: 360122102008 | D150: 154012201609 | E150: 14 | F150: =VLOOKUP(C150,Sheet2!A:B,2,FALSE) -> 184.5
A151: 150 | B151: 胡瑶菱 | C151: 360122102008 | D151: 154012203521 | E151: 16 | F151: =VLOOKUP(C151,Sheet2!A:B,2,FALSE) -> 184.5
A152: 151 | B152: 余晓宇 | C152: 360122102008 | D152: 154012201018 | E152: 15 | F152: =VLOOKUP(C152,Sheet2!A:B,2,FALSE) -> 184.5
A153: 152 | B153: 孙莹 | C153: 360122102008 | D153: 154012201603 | E153: 17 | F153: =VLOOKUP(C153,Sheet2!A:B,2,FALSE) -> 184.5
A154: 153 | B154: 闵佳 | C154: 360122102008 | D154: 154232402712 | E154: 18 | F154: =VLOOKUP(C154,Sheet2!A:B,2,FALSE) -> 184.5
A155: 154 | B155: 毛青 | C155: 360122102008 | D155: 154221402319 | E155: 19 | F155: =VLOOKUP(C155,Sheet2!A:B,2,FALSE) -> 184.5
A156: 155 | B156: 夏慧晴 | C156: 360122102008 | D156: 154012202001 | E156: 20 | F156: =VLOOKUP(C156,Sheet2!A:B,2,FALSE) -> 184.5
A157: 156 | B157: 万心霓 | C157: 360122103004 | D157: 154012501130 | E157: 1 | F157: =VLOOKUP(C157,Sheet2!A:B,2,FALSE) -> 182.5
A158: 157 | B158: 汪莹 | C158: 360122103004 | D158: 154012502326 | E158: 2 | F158: =VLOOKUP(C158,Sheet2!A:B,2,FALSE) -> 182.5
A159: 158 | B159: 蔡涵琪 | C159: 360122103004 | D159: 154012500124 | E159: 3 | F159: =VLOOKUP(C159,Sheet2!A:B,2,FALSE) -> 182.5
A160: 159 | B160: 谌浩莹 | C160: 360122103004 | D160: 154012502122 | E160: 4 | F160: =VLOOKUP(C160,Sheet2!A:B,2,FALSE) -> 182.5
A161: 160 | B161: 邓丽 | C161: 360122103004 | D161: 154012500828 | E161: 5 | F161: =VLOOKUP(C161,Sheet2!A:B,2,FALSE) -> 182.5
A162: 161 | B162: 熊磊 | C162: 360122103004 | D162: 154012500318 | E162: 6 | F162: =VLOOKUP(C162,Sheet2!A:B,2,FALSE) -> 182.5
A163: 162 | B163: 陈淑芳 | C163: 360122103004 | D163: 154012502117 | E163: 7 | F163: =VLOOKUP(C163,Sheet2!A:B,2,FALSE) -> 182.5
A164: 163 | B164: 戴梦越 | C164: 360122103004 | D164: 154012502215 | E164: 8 | F164: =VLOOKUP(C164,Sheet2!A:B,2,FALSE) -> 182.5
A165: 164 | B165: 赖严情 | C165: 360122103004 | D165: 154012501115 | E165: 9 | F165: =VLOOKUP(C165,Sheet2!A:B,2,FALSE) -> 182.5
A166: 165 | B166: 罗飘 | C166: 360122103004 | D166: 154012501817 | E166: 10 | F166: =VLOOKUP(C166,Sheet2!A:B,2,FALSE) -> 182.5
A167: 166 | B167: 张艳 | C167: 360122103004 | D167: 154012502225 | E167: 11 | F167: =VLOOKUP(C167,Sheet2!A:B,2,FALSE) -> 182.5
A168: 167 | B168: 游莎 | C168: 360122103004 | D168: 154012500509 | E168: 12 | F168: =VLOOKUP(C168,Sheet2!A:B,2,FALSE) -> 182.5
A169: 168 | B169: 熊航梓 | C169: 360122105003 | D169: 154012601228 | E169: 1 | F169: =VLOOKUP(C169,Sheet2!A:B,2,FALSE) -> 141.5
A170: 169 | B170: 张煜 | C170: 360122105003 | D170: 154012601913 | E170: 2 | F170: =VLOOKUP(C170,Sheet2!A:B,2,FALSE) -> 141.5
A171: 170 | B171: 熊子健 | C171: 360122105003 | D171: 154012601316 | E171: 3 | F171: =VLOOKUP(C171,Sheet2!A:B,2,FALSE) -> 141.5
A172: 171 | B172: 余章琪 | C172: 360122105003 | D172: 154012601723 | E172: 4 | F172: =VLOOKUP(C172,Sheet2!A:B,2,FALSE) -> 141.5
A173: 172 | B173: 邱俊杰 | C173: 360122105003 | D173: 154012601618 | E173: 5 | F173: =VLOOKUP(C173,Sheet2!A:B,2,FALSE) -> 141.5
A174: 173 | B174: 裘子辉 | C174: 360122105003 | D174: 154012601518 | E174: 6 | F174: =VLOOKUP(C174,Sheet2!A:B,2,FALSE) -> 141.5
A175: 174 | B175: 付燕霞 | C175: 360122105003 | D175: 154012601508 | E175: 7 | F175: =VLOOKUP(C175,Sheet2!A:B,2,FALSE) -> 141.5
A176: 175 | B176: 赵红越 | C176: 360122105003 | D176: 154012601613 | E176: 8 | F176: =VLOOKUP(C176,Sheet2!A:B,2,FALSE) -> 141.5
A177: 176 | B177: 詹明 | C177: 360122105003 | D177: 154012601409 | E177: 9 | F177: =VLOOKUP(C177,Sheet2!A:B,2,FALSE) -> 141.5
A178: 177 | B178: 熊琴 | C178: 360122106003 | D178: 154012603325 | E178: 1 | F178: =VLOOKUP(C178,Sheet2!A:B,2,FALSE) -> 177.5
A179: 178 | B179: 胡玉婷 | C179: 360122106003 | D179: 154012602809 | E179: 2 | F179: =VLOOKUP(C179,Sheet2!A:B,2,FALSE) -> 177.5
A180: 179 | B180: 凌蓉妹 | C180: 360122106003 | D180: 154012603517 | E180: 3 | F180: =VLOOKUP(C180,Sheet2!A:B,2,FALSE) -> 177.5
A181: 180 | B181: 钟婷 | C181: 360122106003 | D181: 154012602621 | E181: 4 | F181: =VLOOKUP(C181,Sheet2!A:B,2,FALSE) -> 177.5
A182: 181 | B182: 蔡紫涵 | C182: 360122106003 | D182: 154012603718 | E182: 5 | F182: =VLOOKUP(C182,Sheet2!A:B,2,FALSE) -> 177.5
A183: 182 | B183: 杨慧 | C183: 360122106003 | D183: 154012603413 | E183: 6 | F183: =VLOOKUP(C183,Sheet2!A:B,2,FALSE) -> 177.5
A184: 183 | B184: 葛江云 | C184: 360122106003 | D184: 154012603410 | E184: 7 | F184: =VLOOKUP(C184,Sheet2!A:B,2,FALSE) -> 177.5
A185: 184 | B185: 文怡斓 | C185: 360122106003 | D185: 154012603324 | E185: 8 | F185: =VLOOKUP(C185,Sheet2!A:B,2,FALSE) -> 177.5
A186: 185 | B186: 吴庭红 | C186: 360122106003 | D186: 154012602415 | E186: 9 | F186: =VLOOKUP(C186,Sheet2!A:B,2,FALSE) -> 177.5
A187: 186 | B187: 万志豪 | C187: 360122107003 | D187: 154012503019 | E187: 1 | F187: =VLOOKUP(C187,Sheet2!A:B,2,FALSE) -> 147.5
A188: 187 | B188: 熊文瑄 | C188: 360122107003 | D188: 154012502928 | E188: 2 | F188: =VLOOKUP(C188,Sheet2!A:B,2,FALSE) -> 147.5
A189: 188 | B189: 万家钰 | C189: 360122107003 | D189: 154012503017 | E189: 3 | F189: =VLOOKUP(C189,Sheet2!A:B,2,FALSE) -> 147.5
A190: 189 | B190: 夏颖苗 | C190: 360122107003 | D190: 154012502925 | E190: 4 | F190: =VLOOKUP(C190,Sheet2!A:B,2,FALSE) -> 147.5
A191: 190 | B191: 夏琬琪 | C191: 360122107003 | D191: 154012503005 | E191: 5 | F191: =VLOOKUP(C191,Sheet2!A:B,2,FALSE) -> 147.5
A192: 191 | B192: 胡雯 | C192: 360122107003 | D192: 154012502709 | E192: 6 | F192: =VLOOKUP(C192,Sheet2!A:B,2,FALSE) -> 147.5
A193: 192 | B193: 艾瑞琪 | C193: 360122107003 | D193: 154012502608 | E193: 7 | F193: =VLOOKUP(C193,Sheet2!A:B,2,FALSE) -> 147.5
A194: 193 | B194: 刘杨 | C194: 360122107003 | D194: 154012502717 | E194: 8 | F194: =VLOOKUP(C194,Sheet2!A:B,2,FALSE) -> 147.5
A195: 194 | B195: 姜璐 | C195: 360122107003 | D195: 154012503027 | E195: 9 | F195: =VLOOKUP(C195,Sheet2!A:B,2,FALSE) -> 147.5
A196: 195 | B196: 贾晓婷 | C196: 360122107003 | D196: 154012502713 | E196: 10 | F196: =VLOOKUP(C196,Sheet2!A:B,2,FALSE) -> 147.5
A197: 196 | B197: 陈秀兰 | C197: 360202101001 | D197: 154020401112 | E197: 1 | F197: =VLOOKUP(C197,Sheet2!A:B,2,FALSE) -> 182.5
A198: 197 | B198: 朱菁伊 | C198: 360202101001 | D198: 154020400124 | E198: 2 | F198: =VLOOKUP(C198,Sheet2!A:B,2,FALSE) -> 182.5
A199: 198 | B199: 段紫婷 | C199: 360202101001 | D199: 154020401025 | E199: 3 | F199: =VLOOKUP(C199,Sheet2!A:B,2,FALSE) -> 182.5
A200: 199 | B200: 饶芷芸 | C200: 360202104002 | D200: 154012600505 | E200: 1 | F200: =VLOOKUP(C200,Sheet2!A:B,2,FALSE) -> 208.5
... 7259 more rows

Sheet Sheet2
A1: 岗位代码 | B1: 入闱最低成绩
A2: 360105206001 | B2: 188.5
A3: 360105205001 | B3: 144
A4: 360105203001 | B4: 185.5
A5: 360122106003 | B5: 177.5
A6: 360122102008 | B6: 184.5
A7: 360122105003 | B7: 141.5
A8: 360122107003 | B8: 147.5
A9: 360122103004 | B9: 182.5
A10: 360122101009 | B10: 188
A11: 360426204001 | B11: 147
A12: 360426209001 | B12: 196
A13: 360426210003 | B13: 64
A14: 360426208001 | B14: 147.5
A15: 360426212001 | B15: 176.5
A16: 360426202002 | B16: 106
A17: 360426205001 | B17: 59.5
A18: 360426211003 | B18: 91
A19: 360426203002 | B19: 184.5
A20: 360426201002 | B20: 127.5
A21: 360426102001 | B21: 156.5
A22: 360426103001 | B22: 167
A23: 360426101001 | B23: 189
A24: 360428204002 | B24: 126.5
A25: 360428210004 | B25: 50.5
A26: 360428206005 | B26: 159
A27: 360428202004 | B27: 145
A28: 360428205005 | B28: 96
A29: 360428211005 | B29: 101
A30: 360428215001 | B30: 132.5
A31: 360428207005 | B31: 91
A32: 360428203004 | B32: 180.5
A33: 360428201002 | B33: 117
A34: 360428104003 | B34: 202.5
A35: 360428116001 | B35: 152
A36: 360428106006 | B36: 160
A37: 360428102017 | B37: 186
A38: 360428105006 | B38: 148
A39: 360428107006 | B39: 109
A40: 360428103007 | B40: 183
A41: 360428101017 | B41: 188.5
A42: 360430210001 | B42: 124
A43: 360430206002 | B43: 146
A44: 360430205001 | B44: 88
A45: 360430211001 | B45: 135
A46: 360430207002 | B46: 94.5
A47: 360430106002 | B47: 109.5
A48: 360430102002 | B48: 182.5
A49: 360430105001 | B49: 166.5
A50: 360430107002 | B50: 127
A51: 360430103001 | B51: 180
A52: 360430101002 | B52: 173.5
A53: 360481204002 | B53: 148.5
A54: 360481209002 | B54: 187
A55: 360481210001 | B55: 142
A56: 360481206003 | B56: 175
A57: 360481202006 | B57: 147
A58: 360481205002 | B58: 111.5
A59: 360481211001 | B59: 121.5
A60: 360481207001 | B60: 113
A61: 360481203003 | B61: 188
A62: 360481201004 | B62: 152.5
A63: 360481104002 | B63: 196
A64: 360481116001 | B64: 184
A65: 360481106003 | B65: 146.5
A66: 360481102009 | B66: 192.5
A67: 360481105002 | B67: 159
A68: 360481115001 | B68: 210.5
A69: 360481113001 | B69: 170
A70: 360481107001 | B70: 128.5
A71: 360481103006 | B71: 181
A72: 360481101009 | B72: 189
A73: 360425204002 | B73: 200.5
A74: 360425209001 | B74: 198
A75: 360425208001 | B75: 177.5
A76: 360425212001 | B76: 168
A77: 360425202005 | B77: 178.5
A78: 360425205003 | B78: 83.5
A79: 360425211003 | B79: 102.5
A80: 360425203004 | B80: 187.5
A81: 360425201003 | B81: 142.5
A82: 360425104001 | B82: 168.5
A83: 360425116001 | B83: 184
A84: 360425106002 | B84: 172
A85: 360425102002 | B85: 192.5
A86: 360425105002 | B86: 149
A87: 360425107001 | B87: 162.5
A88: 360425103001 | B88: 171.5
A89: 360425101002 | B89: 190
A90: 360425114001 | B90: 199
A91: 360202204003 | B91: 160.5
A92: 360202209001 | B92: 137
A93: 360202210003 | B93: 135
A94: 360202212001 | B94: 161.5
A95: 360202202002 | B95: 173
A96: 360202211003 | B96: 147.5
A97: 360202203001 | B97: 161
A98: 360202201001 | B98: 157
A99: 360202104002 | B99: 208.5
A100: 360202106001 | B100: 171
A101: 360202105001 | B101: 133
A102: 360202101001 | B102: 182.5
A103: 360281204002 | B103: 97.5
A104: 360281210005 | B104: 152
A105: 360281212001 | B105: 160.5
A106: 360281202015 | B106: 168
A107: 360281205005 | B107: 122
A108: 360281211007 | B108: 113.5
A109: 360281203016 | B109: 182.5
A110: 360281201015 | B110: 149.5
A111: 360281116001 | B111: 166.5
A112: 360281106002 | B112: 131
A113: 360281102002 | B113: 179.5
A114: 360281105003 | B114: 149.5
A115: 360281107002 | B115: 104
A116: 360281103002 | B116: 172
A117: 360281101002 | B117: 189
A118: 360321204003 | B118: 143.5
A119: 360321209002 | B119: 139
A120: 360321210003 | B120: 101
A121: 360321208002 | B121: 158.5
A122: 360321206002 | B122: 156.5
A123: 360321212003 | B123: 123.5
A124: 360321202003 | B124: 158.5
A125: 360321205002 | B125: 121.5
A126: 360321211003 | B126: 107.5
A127: 360321207002 | B127: 122.5
A128: 360321203002 | B128: 183
A129: 360321201003 | B129: 122.5
A130: 360323204003 | B130: 110
A131: 360323210002 | B131: 141
A132: 360323208003 | B132: 145.5
A133: 360323212002 | B133: 165
A134: 360323202004 | B134: 155
A135: 360323211003 | B135: 130
A136: 360323201003 | B136: 151
A137: 360323116002 | B137: 172
A138: 360323102002 | B138: 193.5
A139: 360323105002 | B139: 115.5
A140: 360323107002 | B140: 155.5
A141: 360323103002 | B141: 180.5
A142: 360322204002 | B142: 138.5
A143: 360322209002 | B143: 135.5
A144: 360322210002 | B144: 128
A145: 360322212002 | B145: 161.5
A146: 360322202003 | B146: 149.5
A147: 360322205002 | B147: 167.5
A148: 360322211002 | B148: 137
A149: 360322203002 | B149: 167
A150: 360322201003 | B150: 134
A151: 360322106004 | B151: 158
A152: 360322102006 | B152: 190.5
A153: 360322105006 | B153: 151
A154: 360322107004 | B154: 157
A155: 360322103004 | B155: 180.5
A156: 360322101006 | B156: 195.5
A157: 360681204002 | B157: 136
A158: 360681209001 | B158: 143.5
A159: 360681210003 | B159: 147
A160: 360681208001 | B160: 112
A161: 360681212001 | B161: 142
A162: 360681202005 | B162: 151.5
A163: 360681205002 | B163: 117
A164: 360681211003 | B164: 109
A165: 360681213001 | B165: 122.5
A166: 360681203002 | B166: 173.5
A167: 360681201005 | B167: 143
A168: 360681106002 | B168: 147.5
A169: 360681102004 | B169: 189
A170: 360681107001 | B170: 117
A171: 360681103001 | B171: 166.5
A172: 360681101001 | B172: 177.5
A173: 360622204002 | B173: 177
A174: 360622206002 | B174: 168.5
A175: 360622205002 | B175: 80.5
A176: 360622207002 | B176: 108
A177: 360622203003 | B177: 182.5
A178: 360622106001 | B178: 134
A179: 360622102004 | B179: 189.5
A180: 360622105001 | B180: 137.5
A181: 360622113003 | B181: 165.5
A182: 360622107001 | B182: 123.5
A183: 360622101004 | B183: 186.5
A184: 361210204010 | B184: 131
A185: 361210209011 | B185: 162
A186: 361210208004 | B186: 130
A187: 361210212003 | B187: 124.5
A188: 361210202010 | B188: 59
A189: 361210211011 | B189: 77
A190: 361210201005 | B190: 141
A191: 361210214001 | B191: 105.5
A192: 361210116005 | B192: 172.5
A193: 361210103015 | B193: 170.5
A194: 361209204002 | B194: 116
A195: 361209210001 | B195: 0
A196: 361209206002 | B196: 168.5
A197: 361209205002 | B197: 143.5
A198: 361209211001 | B198: 157
A199: 361209207002 | B199: 110.5
A200: 361212210001 | B200: 0
... 470 more rows
